bitfinex-derivatives/quotes_BNBF0:USTF0_20250302
["timestamp","ask_amount","ask_price","bid_price","bid_amount"]
[1740880519763,1.1921013,608.8,608.4,1.683]
[1740880520464,1.1921013,608.79,608.4,1.683]
[1740880521264,1.71574367,608.82,608.4,1.683]
[1740880521864,1.1921013,608.81,608.4,1.683]
[1740880522262,1.1921013,608.8,608.4,1.683]
[1740880522965,1.1921013,608.79,608.4,1.683]
[1740880524067,1.1921013,608.78,608.4,1.683]
[1740880524663,1.1921013,608.77,608.4,1.683]
[1740880525565,1.1921013,608.76,608.4,1.683]
[1740880526367,1.71582122,608.79,608.4,1.683]
[1740880526368,1.1921013,608.75,608.4,1.683]
[1740880527671,1.71582122,608.79,608.4,1.683]
[1740880527672,1.1921013,608.74,608.4,1.683]
[1740880528366,1.71582122,608.79,608.4,1.683]
[1740880528565,1.91296719,608.96,608.4,1.683]
[1740880529074,1.91296719,608.95,608.4,1.683]
[1740880529568,1.71556746,608.96,608.4,1.683]
[1740880529767,1.19334461,608.94,608.4,1.683]
[1740880530674,1.19334461,608.93,608.4,1.683]
[1740880531075,1.19334461,608.92,608.4,1.683]
[1740880532073,1.19334461,608.91,608.4,1.683]
[1740880533073,1.19334461,608.9,608.4,1.683]
[1740880536372,3.10315889,608.89,608.4,1.683]
[1740880536974,3.10315889,608.88,608.4,1.683]
[1740880537176,4.81883912,608.88,608.4,1.683]
[1740880537377,1.346,608.87,608.4,1.683]
[1740880537575,4.44915889,608.87,608.4,1.683]
[1740880538175,3.10315889,608.86,608.4,1.683]
[1740880538876,1.19334461,608.86,608.4,1.683]
[1740880539082,1.19334461,608.85,608.4,1.683]
[1740880540078,1.19334461,608.84,608.4,1.683]
[1740880540883,1.19334461,608.83,608.4,1.683]
[1740880541584,1.19334461,608.82,608.4,1.683]
[1740880542284,1.346,608.87,608.4,1.683]
[1740880542285,1.19334461,608.81,608.4,1.683]
[1740880542883,1.19334461,608.8,608.4,1.683]
[1740880543085,1.19334461,608.79,608.4,1.683]
[1740880543584,1.19334461,608.78,608.4,1.683]
[1740880543984,3.10676203,608.77,608.4,1.683]
[1740880544584,1.19334461,608.76,608.4,1.683]
[1740880545579,1.19334461,608.75,608.4,1.683]
[1740880546285,1.346,608.87,608.4,1.683]
[1740880546286,1.19334461,608.74,608.4,1.683]
[1740880546783,1.19334461,608.73,608.4,1.683]
[1740880547884,1.19334461,608.72,608.4,1.683]
[1740880548678,1.91533828,608.86,608.4,1.683]
[1740880548883,1.91533828,608.85,608.4,1.683]
[1740880549284,3.11262537,608.84,608.4,1.683]
[1740880550483,3.11262537,608.83,608.4,1.683]
[1740880550984,3.11262537,608.82,608.4,1.683]
[1740880552090,3.11262537,608.81,608.4,1.683]
[1740880552789,1.19728709,608.8,608.4,1.683]
[1740880553787,1.19728709,608.79,608.4,1.683]
[1740880554493,1.19728709,608.78,608.4,1.683]
[1740880555191,1.19728709,608.77,608.4,1.683]
[1740880555694,1.19728709,608.76,608.4,1.683]
[1740880556696,1.19728709,608.75,608.4,1.683]
[1740880557492,1.9156989,608.86,608.4,1.683]
[1740880558395,3.11301487,608.85,608.4,1.683]
[1740880558798,3.11301487,608.84,608.4,1.683]
[1740880559499,3.11301487,608.83,608.4,1.683]
[1740880560094,3.11301487,608.82,608.4,1.683]
[1740880560598,1.19731597,608.81,608.4,1.683]
[1740880561995,1.346,608.87,608.4,1.683]
[1740880562401,1.19695214,608.86,608.4,1.683]
[1740880562898,1.19695214,608.86,608.41,0.32872569]
[1740880563096,1.19695214,608.85,608.41,0.32872569]
[1740880563798,1.346,608.87,608.41,0.32872569]
[1740880566501,1.346,608.87,608.41,1.51672569]
[1740880569302,3.1105654,609.19,608.41,1.51672569]
[1740880569499,3.1105654,609.18,608.41,1.51672569]
[1740880570501,1.491,609.17,608.41,1.51672569]
[1740880570708,1.19637131,609.16,608.41,1.51672569]
[1740880571109,1.19637131,609.15,608.41,1.51672569]
[1740880571708,1.19637131,609.14,608.41,1.51672569]
[1740880572509,1.19637131,609.13,608.41,1.51672569]
[1740880573105,1.491,609.17,608.41,1.51672569]
[1740880599626,1.18760689,609.41,608.41,1.51672569]
[1740880600021,3.08801673,609.61,608.41,1.51672569]
[1740880600226,1.71447574,609.42,608.41,1.51672569]
[1740880600622,3.08801673,609.6,608.41,1.51672569]
[1740880600825,1.277,609.41,608.41,1.51672569]
[1740880601827,1.71453206,609.4,608.41,1.51672569]
[1740880603126,1.18760689,609.39,608.41,1.51672569]
[1740880603329,2.90214598,609.39,608.41,1.51672569]
[1740880603929,1.18760689,609.38,608.41,1.51672569]
[1740880604724,1.18760689,609.37,608.41,1.51672569]
[1740880605428,1.18760689,609.36,608.41,1.51672569]
[1740880606030,1.18760689,609.35,608.41,1.51672569]
[1740880606327,2.90242056,609.35,608.41,1.51672569]
[1740880607029,1.18760689,609.34,608.41,1.51672569]
[1740880607925,1.18760689,609.33,608.41,1.51672569]
[1740880608324,1.71481367,609.35,608.41,1.51672569]
[1740880608325,1.18760689,609.32,608.41,1.51672569]
[1740880608732,1.18760689,609.31,608.41,1.51672569]
[1740880609330,1.71484184,609.3,608.41,1.51672569]
[1740880609530,2.90244873,609.3,608.41,1.51672569]
[1740880610133,1.18760689,609.29,608.41,1.51672569]
[1740880610834,1.18760689,609.28,608.41,1.51672569]
[1740880611438,1.18760689,609.27,608.41,1.51672569]
[1740880612335,1.71487001,609.26,608.41,1.51672569]
[1740880612736,2.9024769,609.26,608.41,1.51672569]
[1740880613327,1.18760689,609.25,608.41,1.51672569]
[1740880614036,1.616,609.24,608.41,1.51672569]
[1740880614231,2.80360689,609.24,608.41,1.51672569]
[1740880615330,1.18760689,609.23,608.41,1.51672569]
[1740880615534,2.90249803,609.23,608.41,1.51672569]
[1740880615935,1.18760689,609.22,608.41,1.51672569]
[1740880616736,1.18760689,609.21,608.41,1.51672569]
[1740880617832,1.71489114,609.23,608.41,1.51672569]
[1740880618132,1.616,609.24,608.41,1.51672569]
[1740880618336,1.71489818,609.22,608.41,1.51672569]
[1740880621838,1.19404492,609.21,608.41,1.51672569]
[1740880623037,1.71489818,609.22,608.41,1.51672569]
[1740880623942,1.616,609.24,608.41,1.51672569]
[1740880625943,1.19501471,609.23,608.41,1.51672569]
[1740880626642,1.19501471,609.22,608.41,1.51672569]
[1740880627045,1.616,609.24,608.41,1.51672569]
[1740880627445,1.19614944,609.23,608.41,1.51672569]
[1740880628047,1.19614944,609.22,608.41,1.51672569]
[1740880628543,1.19614944,609.21,608.41,1.51672569]
[1740880629243,1.616,609.24,608.41,1.51672569]
[1740880630143,1.19634459,609.23,608.41,1.51672569]
[1740880630748,1.19634459,609.22,608.41,1.51672569]
[1740880631347,1.616,609.24,608.41,1.51672569]
[1740880633351,1.616,609.24,608.5,1.21363119]
[1740880633553,1.616,609.24,608.51,0.32867167]
[1740880635451,1.616,609.24,608.57,1.21363119]
[1740880635646,1.616,609.24,608.58,0.32863386]
[1740880636850,1.616,609.24,608.59,1.801]
[1740880637050,1.616,609.24,608.6,0.32862306]
[1740880642052,1.62395951,609.58,608.6,0.32862306]
[1740880642252,1.91470852,609.39,608.6,0.32862306]
[1740880643258,4.66929351,609.38,608.6,0.32862306]
[1740880643956,3.11129351,609.37,608.6,0.32862306]
[1740880644555,3.11129351,609.36,608.6,0.32862306]
[1740880645359,3.11129351,609.35,608.6,0.32862306]
[1740880645858,1.19658499,609.34,608.6,0.32862306]
[1740880646458,1.19658499,609.33,608.6,0.32862306]
[1740880647257,1.19658499,609.32,608.6,0.32862306]
[1740880648158,1.558,609.38,608.6,0.32862306]
[1740880648762,1.19667543,609.37,608.6,0.32862306]
[1740880649258,1.19667543,609.36,608.6,0.32862306]
[1740880649854,1.19667543,609.35,608.6,0.32862306]
[1740880650256,1.19667543,609.34,608.6,0.32862306]
[1740880650861,1.19667543,609.33,608.6,0.32862306]
[1740880651657,1.558,609.38,608.6,0.32862306]
[1740880652960,1.196566,609.37,608.6,0.32862306]
[1740880653658,1.196566,609.36,608.6,0.32862306]
[1740880654560,1.196566,609.35,608.6,0.32862306]
[1740880655163,1.558,609.38,608.6,0.32862306]
[1740880655764,1.19642056,609.37,608.6,0.32862306]
[1740880656157,1.19642056,609.36,608.6,0.32862306]
[1740880657264,1.558,609.38,608.6,0.32862306]
[1740880659168,1.71437017,609.46,608.6,0.32862306]
[1740880660060,1.62395951,609.67,608.6,0.32862306]
[1740880660260,1.1963039,609.37,608.6,0.32862306]
[1740880660861,1.411,609.45,608.6,0.32862306]
[1740880661065,1.411,609.45,608.61,1.522]
[1740880661367,1.411,609.45,608.63,0.32860687]
[1740880678274,1.71429275,609.44,608.63,0.32860687]
[1740880681172,1.411,609.45,608.63,0.32860687]
[1740880681372,1.71429979,609.43,608.63,0.32860687]
[1740880683978,1.411,609.45,608.63,0.32860687]
[1740880684380,1.71430683,609.43,608.63,0.32860687]
[1740880687178,1.411,609.45,608.63,0.32860687]
[1740880687574,1.71430683,609.43,608.63,0.32860687]
[1740880688180,1.19546092,609.42,608.63,0.32860687]
[1740880689183,2.90976775,609.43,608.63,0.32860687]
[1740880689782,1.71430683,609.43,608.63,0.32860687]
[1740880690181,1.19546092,609.44,608.63,0.32860687]
[1740880690587,1.71465877,609.42,608.63,0.32860687]
[1740880692288,1.71465877,609.42,608.64,1.684]
[1740880692488,1.71465877,609.42,608.65,0.32859607]
[1740880693188,1.411,609.45,608.65,0.32859607]
[1740880693490,1.71433498,609.41,608.65,0.32859607]
[1740880694083,1.1958922,609.4,608.65,0.32859607]
[1740880694482,1.1958922,609.39,608.65,0.32859607]
[1740880695090,1.1958922,609.38,608.65,0.32859607]
[1740880695786,1.1958922,609.37,608.65,0.32859607]
[1740880696287,1.411,609.45,608.65,0.32859607]
[1740880696490,1.71432794,609.43,608.65,0.32859607]
[1740880696892,1.19603193,609.42,608.65,0.32859607]
[1740880697391,1.19603193,609.41,608.65,0.32859607]
[1740880698099,1.19603193,609.4,608.65,0.32859607]
[1740880698688,1.19603193,609.39,608.65,0.32859607]
[1740880699289,1.19603193,609.38,608.65,0.32859607]
[1740880699888,1.19603193,609.37,608.65,0.32859607]
[1740880700694,3.10980698,609.36,608.65,0.32859607]
[1740880701294,3.10980698,609.35,608.65,0.32859607]
[1740880702398,3.10980698,609.34,608.65,0.32859607]
[1740880702998,3.10980698,609.33,608.65,0.32859607]
[1740880703903,1.19603193,609.32,608.65,0.32859607]
[1740880705100,1.19603193,609.31,608.65,0.32859607]
[1740880705804,1.19603193,609.3,608.65,0.32859607]
[1740880706304,1.19603193,609.29,608.65,0.32859607]
[1740880707004,1.9138611,609.38,608.65,0.32859607]
[1740880707403,1.19613709,609.37,608.65,0.32859607]
[1740880707802,1.19613709,609.36,608.65,0.32859607]
[1740880708306,1.9138611,609.44,608.65,0.32859607]
[1740880708609,1.71440536,609.4,608.65,0.32859607]
[1740880709008,1.19600732,609.39,608.65,0.32859607]
[1740880709606,1.19600732,609.38,608.65,0.32859607]
[1740880710205,1.19600732,609.37,608.65,0.32859607]
[1740880710402,1.19600732,609.37,608.65,1.87659607]
[1740880711110,1.71440536,609.4,608.65,1.87659607]
[1740880711111,1.9138611,609.44,608.65,1.87659607]
[1740880711311,1.71436313,609.4,608.65,1.87659607]
[1740880711707,1.19582509,609.39,608.65,1.87659607]
[1740880712413,1.19582509,609.38,608.65,1.87659607]
[1740880713913,1.19582509,609.37,608.65,1.87659607]
[1740880714214,1.19582509,609.37,608.66,1.21363119]
[1740880714411,1.19582509,609.37,608.67,0.32858527]
[1740880714613,1.19582509,609.36,608.67,0.32858527]
[1740880715516,1.19582509,609.35,608.67,0.32858527]
[1740880716311,1.19582509,609.34,608.67,0.32858527]
[1740880716518,2.63782509,609.34,608.68,1.21363119]
[1740880716716,2.63782509,609.34,608.69,0.32857447]
[1740880717217,1.19582509,609.33,608.69,0.32857447]
[1740880717921,1.19582509,609.32,608.69,0.32857447]
[1740880718511,1.442,609.34,608.69,0.32857447]
[1740880718718,1.442,609.34,608.69,1.54220566]
[1740880720422,1.442,609.34,608.76,1.21363119]
[1740880721618,1.442,609.34,608.76,1.54216788]
[1740880722921,1.442,609.34,608.77,1.21363119]
[1740880725126,1.442,609.34,608.78,0.3285259]
[1740880730722,1.19754235,609.33,608.78,0.3285259]
[1740880731121,1.442,609.34,608.78,0.3285259]
[1740880733030,1.19815172,609.33,608.78,0.3285259]
[1740880733723,1.19815172,609.32,608.78,0.3285259]
[1740880734530,1.19815172,609.31,608.78,0.3285259]
[1740880734922,1.19815172,609.3,608.78,0.3285259]
[1740880735528,1.19815172,609.29,608.78,0.3285259]
[1740880736731,1.19815172,609.28,608.78,0.3285259]
[1740880737932,1.442,609.34,608.78,0.3285259]
[1740880739028,1.19932899,609.33,608.78,0.3285259]
[1740880739531,1.442,609.34,608.78,0.3285259]
[1740880740633,1.1993239,609.33,608.78,0.3285259]
[1740880741331,1.1993239,609.32,608.78,0.3285259]
[1740880742230,1.442,609.34,608.78,0.3285259]
[1740880742729,1.442,609.34,608.78,1.7395259]
[1740880743132,1.19933419,609.33,608.78,1.7395259]
[1740880743735,1.442,609.34,608.78,1.7395259]
[1740880745629,1.1993067,609.33,608.78,1.7395259]
[1740880746332,1.1993067,609.32,608.78,1.7395259]
[1740880746932,1.1993067,609.31,608.78,1.7395259]
[1740880747437,1.1993067,609.3,608.78,1.7395259]
[1740880748138,1.1993067,609.29,608.78,1.7395259]
[1740880748939,1.1993067,609.28,608.78,1.7395259]
[1740880749538,1.442,609.34,608.78,1.7395259]
[1740880750035,1.19925171,609.33,608.78,1.7395259]
[1740880751035,1.442,609.34,608.78,1.7395259]
[1740880754339,1.442,609.34,608.85,1.21363119]
[1740880754540,1.442,609.34,608.86,0.32848273]
[1740880758647,1.442,609.34,608.96,1.21363119]
[1740880758841,1.442,609.34,608.97,0.3284234]
[1740880759649,1.71371588,609.7,608.97,0.3284234]
[1740880760344,1.19568433,609.86,608.97,0.3284234]
[1740880760550,1.71339947,609.8,608.97,0.3284234]
[1740880760952,1.19568433,609.79,608.97,0.3284234]
[1740880761655,1.19568433,609.78,608.97,0.3284234]
[1740880762354,2.90914005,609.77,608.97,0.3284234]
[1740880762549,1.71345572,609.77,608.97,0.3284234]
[1740880767755,1.71345572,609.77,608.98,1.803]
[1740880767951,1.71345572,609.77,608.99,0.32841261]
[1740880768156,1.19568433,609.84,608.99,0.32841261]
[1740880768558,1.713287,609.77,608.99,0.32841261]
[1740880769459,1.19568433,609.76,608.99,0.32841261]
[1740880769852,1.19568433,609.75,608.99,0.32841261]
[1740880770851,1.19568433,609.74,608.99,0.32841261]
[1740880771665,1.71330809,609.77,608.99,0.32841261]
[1740880772355,1.19568433,609.76,608.99,0.32841261]
[1740880773058,1.71330809,609.77,608.99,0.32841261]
[1740880774060,1.9088551,609.84,608.99,0.32841261]
[1740880774563,1.7132378,609.83,608.99,0.32841261]
[1740880774861,2.90561446,609.83,608.99,0.32841261]
[1740880775762,1.19237666,609.82,608.99,0.32841261]
[1740880777057,1.19237666,609.81,608.99,0.32841261]
[1740880777462,1.71325888,609.8,608.99,0.32841261]
[1740880777664,2.90563554,609.8,608.99,0.32841261]
[1740880778360,1.19237666,609.79,608.99,0.32841261]
[1740880779161,1.19237666,609.78,608.99,0.32841261]
[1740880779957,1.19237666,609.77,608.99,0.32841261]
[1740880780763,1.71325888,609.8,608.99,0.32841261]
[1740880781668,1.19215472,609.79,608.99,0.32841261]
[1740880783367,1.19215472,609.78,608.99,0.32841261]
[1740880783567,2.90575106,609.78,608.99,0.32841261]
[1740880783970,1.71359634,609.78,609.0,1.58]
[1740880784169,1.71359634,609.78,609.01,0.32840183]
[1740880785566,1.19211352,609.77,609.01,0.32840183]
[1740880786168,1.202,609.85,609.01,0.32840183]
[1740880787066,2.90534793,609.84,609.01,0.32840183]
[1740880787772,1.19213122,609.83,609.01,0.32840183]
[1740880788573,1.19213122,609.82,609.01,0.32840183]
[1740880789276,1.19213122,609.81,609.01,0.32840183]
[1740880789575,2.90536902,609.81,609.01,0.32840183]
[1740880789775,1.19213122,609.8,609.01,0.32840183]
[1740880790375,1.19213122,609.79,609.01,0.32840183]
[1740880791675,1.19213122,609.78,609.01,0.32840183]
[1740880792277,1.202,609.85,609.01,0.32840183]
[1740880792476,1.71322374,609.8,609.01,0.32840183]
[1740880793078,1.19244021,609.79,609.01,0.32840183]
[1740880793974,1.19244021,609.78,609.01,0.32840183]
[1740880795082,1.19244021,609.77,609.01,0.32840183]
[1740880795873,1.71322374,609.8,609.01,0.32840183]
[1740880796373,1.19285034,609.79,609.01,0.32840183]
[1740880796781,1.19285034,609.78,609.01,0.32840183]
[1740880797574,1.19285034,609.77,609.01,0.32840183]
[1740880798176,1.19285034,609.76,609.01,0.32840183]
[1740880798774,1.19285034,609.75,609.01,0.32840183]
[1740880799282,1.71327294,609.77,609.01,0.32840183]
[1740880800186,1.1937014,609.76,609.01,0.32840183]
[1740880800686,1.71327294,609.77,609.01,0.32840183]
[1740880801082,1.90823543,609.84,609.01,0.32840183]
[1740880801485,1.71322374,609.83,609.01,0.32840183]
[1740880801983,1.19396177,609.82,609.01,0.32840183]
[1740880802588,1.19396177,609.81,609.01,0.32840183]
[1740880803288,1.19396177,609.8,609.01,0.32840183]
[1740880803687,1.19396177,609.79,609.01,0.32840183]
[1740880804587,2.90722065,609.78,609.01,0.32840183]
[1740880805188,1.19396177,609.77,609.01,0.32840183]
[1740880805791,1.71313237,609.89,609.01,0.32840183]
[1740880805991,1.158,609.76,609.01,0.32840183]
[1740880806587,1.19566987,609.75,609.01,0.32840183]
[1740880807391,1.19566987,609.74,609.01,0.32840183]
[1740880808393,3.1097824,609.73,609.01,0.32840183]
[1740880809092,3.1097824,609.72,609.01,0.32840183]
[1740880809487,3.1097824,609.71,609.01,0.32840183]
[1740880810986,3.1097824,609.7,609.01,0.32840183]
[1740880811592,1.19566987,609.69,609.01,0.32840183]
[1740880812292,1.19566987,609.68,609.02,1.282]
[1740880812492,1.19566987,609.68,609.03,0.32839104]
[1740880812792,1.19566987,609.67,609.03,0.32839104]
[1740880813493,1.19566987,609.66,609.03,0.32839104]
[1740880814092,1.71341353,609.71,609.03,0.32839104]
[1740880814093,1.19566987,609.65,609.03,0.32839104]
[1740880814897,1.71341353,609.71,609.03,0.32839104]
[1740880814898,1.19566987,609.64,609.03,0.32839104]
[1740880815697,1.19566987,609.63,609.03,0.32839104]
[1740880816699,1.19566987,609.62,609.03,0.32839104]
[1740880817299,1.71334323,609.78,609.03,0.32839104]
[1740880817796,1.19951615,609.77,609.03,0.32839104]
[1740880818102,1.546,609.76,609.03,0.32839104]
[1740880818701,1.19951615,609.75,609.03,0.32839104]
[1740880819695,1.19951615,609.74,609.03,0.32839104]
[1740880820598,1.19951615,609.73,609.03,0.32839104]
[1740880821097,1.19951615,609.72,609.03,0.32839104]
[1740880821503,1.19951615,609.71,609.03,0.32839104]
[1740880822598,1.19951615,609.7,609.03,0.32839104]
[1740880823406,1.19951615,609.69,609.03,0.32839104]
[1740880824199,1.19951615,609.68,609.03,0.32839104]
[1740880824701,1.19951615,609.67,609.03,0.32839104]
[1740880825503,1.19951615,609.66,609.03,0.32839104]
[1740880826107,3.11875922,609.65,609.03,0.32839104]
[1740880826809,3.11875922,609.64,609.03,0.32839104]
[1740880827710,1.71341353,609.71,609.03,0.32839104]
[1740880828101,1.19945118,609.7,609.03,0.32839104]
[1740880828905,1.19945118,609.69,609.03,0.32839104]
[1740880829712,1.19945118,609.68,609.03,0.32839104]
[1740880830107,1.19945118,609.67,609.03,0.32839104]
[1740880830703,1.71339244,609.71,609.03,1.54202223]
[1740880831205,1.546,609.76,609.03,1.54202223]
[1740880831409,1.19934626,609.7,609.03,1.54202223]
[1740880832109,1.19934626,609.69,609.03,1.54202223]
[1740880833010,1.71337838,609.71,609.03,1.54202223]
[1740880833213,1.71337838,609.71,609.03,0.32839104]
[1740880833913,1.19928238,609.7,609.03,0.32839104]
[1740880834306,1.19928238,609.69,609.03,0.32839104]
[1740880835106,1.71339244,609.71,609.03,0.32839104]
[1740880836312,3.11821544,609.7,609.03,0.32839104]
[1740880837009,3.11821544,609.69,609.03,0.32839104]
[1740880837311,1.71346978,609.68,609.03,0.32839104]
[1740880837711,3.11821544,609.67,609.03,0.32839104]
[1740880838414,3.11821544,609.66,609.03,0.32839104]
[1740880839209,3.11821544,609.65,609.03,0.32839104]
[1740880839914,3.11821544,609.64,609.03,0.32839104]
[1740880840511,1.71367369,609.63,609.03,0.32839104]
[1740880840713,4.83188913,609.63,609.03,0.32839104]
[1740880841321,3.11821544,609.62,609.03,0.32839104]
[1740880842218,3.11821544,609.61,609.03,0.32839104]
[1740880843522,4.83224081,609.6,609.03,0.32839104]
[1740880843923,3.11821544,609.59,609.03,0.32839104]
[1740880844525,3.11821544,609.58,609.03,1.79639104]
[1740880845425,3.11821544,609.57,609.03,1.79639104]
[1740880846225,3.11821544,609.56,609.03,1.79639104]
[1740880847126,3.11821544,609.56,609.03,1.468]
[1740880847326,3.11821544,609.55,609.03,1.468]
[1740880847922,3.11821544,609.54,609.03,1.468]
[1740880848830,3.11821544,609.53,609.03,1.468]
[1740880849626,1.71402537,609.6,609.03,1.468]
[1740880849627,3.11821544,609.52,609.03,1.468]
[1740880850422,4.74872486,609.51,609.03,1.468]
[1740880851730,4.74872486,609.5,609.03,1.468]
[1740880852327,6.4631091,609.49,609.03,1.468]
[1740880853328,4.55500728,609.48,609.03,1.468]
[1740880853526,1.43675007,609.47,609.03,1.468]
[1740880854231,3.11821544,609.46,609.03,1.468]
[1740880854431,1.43675007,609.45,609.03,1.468]
[1740880854932,3.11821544,609.46,609.03,1.468]
[1740880855331,4.67121544,609.45,609.03,1.468]
[1740880855832,1.19931363,609.44,609.03,1.468]
[1740880857132,1.19931363,609.43,609.03,1.468]
[1740880857732,1.19931363,609.42,609.03,1.468]
[1740880858235,1.19931363,609.41,609.03,1.468]
[1740880858632,2.91359934,609.41,609.03,1.468]
[1740880858930,1.19931363,609.4,609.03,1.468]
[1740880859833,1.19931363,609.39,609.03,1.468]
[1740880860537,1.19931363,609.38,609.03,1.468]
[1740880861339,1.71437017,609.37,609.03,1.468]
[1740880861539,2.9136838,609.37,609.03,1.468]
[1740880862237,1.19931363,609.36,609.03,1.468]
[1740880863041,1.19931363,609.35,609.03,1.468]
[1740880863642,1.19931363,609.34,609.03,1.468]
[1740880864443,1.71435609,609.33,609.03,1.468]
[1740880864638,2.91366972,609.33,609.03,1.468]
[1740880865041,1.19931363,609.32,609.03,1.468]
[1740880865642,1.19931363,609.31,609.03,1.468]
[1740880866645,1.19931363,609.32,609.03,1.468]
[1740880867145,1.19931363,609.31,609.03,1.468]
[1740880867545,1.71436313,609.3,609.03,1.468]
[1740880867945,2.91367676,609.3,609.03,1.468]
[1740880868648,1.19931363,609.29,609.03,1.468]
[1740880869447,1.19931363,609.28,609.03,1.468]
[1740880869645,1.19931363,609.28,607.9,1.21363119]
[1740880869843,1.19931363,609.28,607.92,0.32899065]
[1740880870347,1.19931363,609.28,607.93,1.71517992]
[1740880870547,1.71517992,609.27,607.95,0.32897442]
[1740880870747,1.71517992,609.27,607.95,1.54260561]
[1740880870948,1.71517992,609.27,607.97,0.3289636]
[1740880872648,1.71517992,609.27,608.02,1.21363119]
[1740880872847,1.71517992,609.27,608.04,0.32892572]
[1740880873244,1.19931363,609.41,608.04,0.32892572]
[1740880873449,1.19931363,609.4,608.04,0.32892572]
[1740880873743,1.71510243,609.26,608.04,0.32892572]
[1740880873947,1.19931363,609.4,608.04,0.32892572]
[1740880874248,1.19931363,609.39,608.04,0.32892572]
[1740880874846,1.19931363,609.38,608.08,1.21363119]
[1740880875050,2.91433154,609.38,608.08,1.21363119]
[1740880875652,1.19931363,609.37,608.08,1.21363119]
[1740880876255,1.19931363,609.37,608.1,0.32889327]
[1740880876452,2.91430336,609.36,608.1,0.32889327]
[1740880876856,2.91430336,609.36,608.14,1.21363119]
[1740880877150,1.19931363,609.35,608.16,0.32886082]
[1740880877656,1.19931363,609.34,608.16,0.32886082]
[1740880878649,1.19931363,609.33,608.18,1.21363119]
[1740880879651,2.91426111,609.32,608.18,1.21363119]
[1740880880250,2.91426111,609.32,608.2,0.32883919]
[1740880880655,1.19931363,609.31,608.2,0.32883919]
[1740880881459,1.71494748,609.32,608.2,0.32883919]
[1740880882551,1.553,609.45,608.2,0.32883919]
[1740880882756,1.71480663,609.44,608.2,0.32883919]
[1740880883351,1.553,609.45,608.2,0.32883919]
[1740880884167,1.553,609.45,608.34,1.21363119]
[1740880884962,1.553,609.45,608.36,0.32875271]
[1740880886456,1.553,609.45,608.85,1.21363119]
[1740880886659,1.553,609.45,608.86,0.32848273]
[1740880906083,1.553,609.45,608.87,1.433]
[1740880906280,1.553,609.45,608.88,0.32847194]
[1740880912385,1.71405351,609.44,608.88,0.32847194]
[1740880913984,3.35605351,609.44,608.88,0.32847194]
[1740880915285,1.642,609.44,608.88,0.32847194]
[1740880915485,3.35606055,609.44,608.88,0.32847194]
[1740880918187,1.18764033,609.43,608.88,0.32847194]
[1740880918685,1.71429275,609.42,608.88,0.32847194]
[1740880921187,1.642,609.44,608.88,0.32847194]
[1740880937399,1.642,609.44,608.89,1.35]
[1740880937798,1.642,609.44,608.9,0.32846115]
[1740880939103,1.642,609.44,608.91,1.21363119]
[1740880939697,1.642,609.44,608.92,0.32845037]
[1740880946206,1.642,609.44,608.93,1.21363119]
[1740880946708,1.642,609.44,608.94,0.32843958]
[1740880953806,1.642,609.44,608.95,1.218]
[1740880954405,1.642,609.44,608.96,0.32842879]
[1740880955608,1.642,609.44,608.97,1.21363119]
[1740880956002,1.642,609.44,608.98,0.32841801]
[1740880966519,1.642,609.44,608.98,1.5420492]
[1740880968817,1.642,609.44,608.98,0.32841801]
[1740880972525,1.642,609.44,609.02,1.21363119]
[1740880972723,1.642,609.44,609.03,0.32839104]
[1740880975629,1.642,609.44,609.08,1.21363119]
[1740880975825,1.642,609.44,609.09,0.32835869]
[1740880978327,1.18882388,609.44,609.31,1.21363119]
[1740880978527,1.62374903,610.44,609.31,1.21363119]
[1740880978727,1.71316751,609.97,609.32,0.32823475]
[1740880978930,1.62374903,610.44,609.32,0.32823475]
[1740880979121,0.30137223,610.43,609.32,0.32823475]
[1740880979325,1.71263354,609.97,609.32,0.32823475]
[1740880979527,1.49292204,610.43,609.32,0.32823475]
[1740880979728,3.20522553,610.42,609.32,0.32823475]
[1740880979928,2.9038533,610.42,609.32,0.32823475]
[1740880980229,1.49292234,610.41,609.35,1.21363119]
[1740880980432,0.30137253,610.4,609.35,1.21363119]
[1740880980830,1.19154981,610.39,609.35,1.21363119]
[1740880981028,0.30137253,610.38,609.35,1.21363119]
[1740880981334,1.696,610.37,609.35,1.21363119]
[1740880981637,4.59986032,610.37,609.35,1.21363119]
[1740880982434,3.09802951,610.36,609.35,1.21363119]
[1740880983134,1.19154981,610.35,609.35,1.21363119]
[1740880983336,1.19154981,610.35,609.36,0.3282132]
[1740880983730,1.19154981,610.34,609.36,0.3282132]